fUST/lending_fUST_20251208
["ID","MTS","AMOUNT","RATE_DAILY","PERIOD"]
[397090091,1765147839818,-2741.900249,0.00010859,2]
[397090093,1765147839827,-2741.900249,0.00010859,2]
[397090095,1765147839836,-2741.900249,0.00010859,2]
[397090097,1765147839845,-2741.900249,0.00010859,2]
[397090099,1765147839854,-2741.900249,0.00010859,2]
[397090101,1765147839863,-2741.900249,0.00010859,2]
[397090103,1765147839872,-2741.900249,0.00010859,2]
[397090105,1765147839881,-2741.900249,0.00010859,2]
[397090107,1765147839890,-2741.900249,0.00010859,2]
[397090109,1765147839899,-2741.900249,0.00010859,2]
[397090111,1765147839908,-2741.900249,0.00010859,2]
[397090113,1765147839922,-2741.900249,0.00010859,2]
[397090115,1765147839931,-297.12846516,0.00010859,2]
[397090120,1765147839968,-1165.76805551,0.00010859,2]
[397090231,1765147840874,-1279.00372833,0.00010859,2]
[397090233,1765147840884,-2741.900249,0.00010859,2]
[397090235,1765147840894,-151.0,0.00010859,2]
[397090237,1765147840903,-2741.900249,0.00010859,2]
[397090239,1765147840915,-151.0,0.00010859,2]
[397090241,1765147840924,-2741.900249,0.00010859,2]
[397090243,1765147840933,-151.0,0.00010859,2]
[397090245,1765147840942,-2741.900249,0.00010859,2]
[397090247,1765147840951,-151.0,0.00010859,2]
[397090250,1765147840962,-2741.900249,0.00010859,2]
[397090252,1765147840971,-151.0,0.00010859,2]
[397090254,1765147840980,-2741.900254,0.00010859,2]
[397090256,1765147840991,-151.0,0.00010859,2]
[397090258,1765147841002,-151.0,0.00010859,2]
[397090260,1765147841011,-289.427105,0.00010859,2]
[397090261,1765147841020,-235.189376,0.00010859,2]
[397090264,1765147841030,-235.189376,0.00010859,2]
[397090265,1765147841039,-235.189376,0.00010859,2]
[397090268,1765147841048,-235.189376,0.00010859,2]
[397090270,1765147841058,-235.189376,0.00010859,2]
[397090272,1765147841066,-235.189376,0.00010859,2]
[397090273,1765147841075,-235.189376,0.00010859,2]
[397090275,1765147841085,-123.87123567,0.00010859,2]
[397090278,1765147841096,-111.31814033,0.00010859,2]
[397090280,1765147841105,-235.189376,0.00010859,2]
[397090282,1765147841114,-235.189376,0.00010859,2]
[397090284,1765147841123,-235.189376,0.00010859,2]
[397090286,1765147841131,-55.40373167,0.00010859,2]
[397090288,1765147841143,-179.78564433,0.00010859,2]
[397090290,1765147841151,-188.21042193,0.00010859,2]
[397090292,1765147841163,-46.97895407,0.00010859,2]
[397090294,1765147841172,-235.189376,0.00010859,2]
[397090296,1765147841181,-235.189376,0.00010859,2]
[397090298,1765147841190,-98.67627774,0.00010859,2]
[397090541,1765147843636,-136.51309826,0.00010859,2]
[397090543,1765147843646,-235.189376,0.00010859,2]
[397090545,1765147843657,-235.189376,0.00010859,2]
[397090547,1765147843667,-235.189376,0.00010859,2]
[397090549,1765147843677,-235.189382,0.00010859,2]
[397090551,1765147843686,-649.199375,0.00010859,2]
[397090553,1765147843695,-649.199375,0.00010859,2]
[397090555,1765147843705,-649.199375,0.00010859,2]
[397090557,1765147843715,-649.199375,0.00010859,2]
[397090559,1765147843724,-649.199375,0.00010859,2]
[397090561,1765147843733,-649.199375,0.00010859,2]
[397090563,1765147843742,-649.199375,0.00010859,2]
[397090565,1765147843752,-649.199375,0.00010859,2]
[397090567,1765147843762,-649.199375,0.00010859,2]
[397090569,1765147843772,-649.199375,0.00010859,2]
[397090571,1765147843782,-649.199375,0.00010859,2]
[397090573,1765147843791,-649.199375,0.00010859,2]
[397090575,1765147843800,-649.199375,0.00010859,2]
[397090577,1765147843809,-649.199375,0.00010859,2]
[397090579,1765147843819,-649.199375,0.00010859,2]
[397090581,1765147843828,-649.199375,0.00010859,2]
[397090584,1765147843837,-649.199375,0.00010859,2]
[397090585,1765147843847,-649.199375,0.00010859,2]
[397090587,1765147843856,-649.199375,0.00010859,2]
[397090589,1765147843866,-649.199369,0.00010859,2]
[397090592,1765147843875,-500.0,0.00010924,2]
[397090594,1765147843884,-151.0,0.00010924,2]
[397090595,1765147843893,-311.30419149,0.00010944,2]
[397090597,1765147843903,-500.0,0.00010959,2]
[397090599,1765147843913,-500.0,0.00010959,2]
[397090601,1765147843924,-571.46715328,0.00010959,2]
[397090603,1765147843933,-571.46715328,0.00010959,2]
[397090605,1765147843942,-571.46715328,0.00010959,2]
[397090608,1765147843951,-571.46715328,0.00010959,2]
[397090609,1765147843963,-571.46715328,0.00010959,2]
[397090611,1765147843972,-571.46715328,0.00010959,2]
[397090613,1765147843981,-571.46715328,0.00010959,2]
[397090615,1765147843990,-571.46715328,0.00010959,2]
[397090617,1765147844000,-571.46715328,0.00010959,2]
[397090619,1765147844009,-571.46715328,0.00010959,2]
[397090621,1765147844020,-571.46715328,0.00010959,2]
[397090623,1765147844029,-571.46715328,0.00010959,2]
[397090625,1765147844038,-571.46715328,0.00010959,2]
[397090628,1765147844048,-571.46715328,0.00010959,2]
[397090630,1765147844057,-571.46715328,0.00010959,2]
[397090632,1765147844066,-571.46715328,0.00010959,2]
[397090633,1765147844075,-500.0,0.00010959,2]
[397090636,1765147844084,-500.0,0.00010959,2]
[397090637,1765147844093,-514.90096098,0.00010959,2]
[397090639,1765147844103,-500.0,0.00010959,2]
[397090642,1765147844112,-500.0,0.00010959,2]
[397090644,1765147844122,-500.0,0.00010959,2]
[397090645,1765147844131,-500.0,0.00010959,2]
[397090648,1765147844140,-500.0,0.00010959,2]
[397090649,1765147844149,-500.0,0.00010959,2]
[397090651,1765147844159,-500.0,0.00010959,2]
[397090653,1765147844168,-500.0,0.00010959,2]
[397090655,1765147844177,-500.0,0.00010959,2]
[397090658,1765147844186,-500.0,0.00010959,2]
[397090660,1765147844195,-500.0,0.00010959,2]
[397090661,1765147844205,-500.0,0.00010959,2]
[397090664,1765147844214,-500.0,0.00010959,2]
[397090666,1765147844223,-500.0,0.00010959,2]
[397090667,1765147844233,-500.0,0.00010959,2]
[397090669,1765147844243,-500.0,0.00010959,2]
[397090671,1765147844252,-500.0,0.00010959,2]
[397090673,1765147844261,-575.54906152,0.00010959,2]
[397090675,1765147844270,-575.54906152,0.00010959,2]
[397090677,1765147844280,-387.81415501,0.00010959,2]
[397090680,1765147844293,-187.73490651,0.00010959,2]
[397090682,1765147844302,-575.54906152,0.00010959,2]
[397090684,1765147844311,-575.54906152,0.00010959,2]
[397090686,1765147844320,-575.54906152,0.00010959,2]
[397090688,1765147844330,-575.54906152,0.00010959,2]
[397090690,1765147844339,-575.54906152,0.00010959,2]
[397090692,1765147844347,-575.54906152,0.00010959,2]
[397090694,1765147844357,-575.54906152,0.00010959,2]
[397090696,1765147844367,-642.69645203,0.00010959,2]
[397090698,1765147844376,-642.69645203,0.00010959,2]
[397090700,1765147844386,-642.69645203,0.00010959,2]
[397090702,1765147844395,-642.69645203,0.00010959,2]
[397090704,1765147844404,-271.872022,0.00010959,2]
[397090706,1765147844413,-271.872022,0.00010959,2]
[397090708,1765147844423,-271.872022,0.00010959,2]
[397090710,1765147844433,-271.872022,0.00010959,2]
[397090712,1765147844442,-271.872022,0.00010959,2]
[397090714,1765147844451,-271.872022,0.00010959,2]
[397090716,1765147844461,-271.872022,0.00010959,2]
[397090718,1765147844470,-271.872022,0.00010959,2]
[397090720,1765147844479,-271.872022,0.00010959,2]
[397090722,1765147844488,-271.872022,0.00010959,2]
[397090724,1765147844497,-271.872022,0.00010959,2]
[397090726,1765147844507,-271.872022,0.00010959,2]
[397090728,1765147844515,-271.872022,0.00010959,2]
[397090730,1765147844525,-271.872022,0.00010959,2]
[397090732,1765147844534,-271.872022,0.00010959,2]
[397090734,1765147844543,-271.87203,0.00010959,2]
[397090736,1765147844552,-151.0,0.00010959,2]
[397090738,1765147844561,-151.0,0.00010959,2]
[397090740,1765147844571,-151.0,0.00010959,2]
[397090742,1765147844580,-151.0,0.00010959,2]
[397090744,1765147844589,-151.0,0.00010959,2]
[397090746,1765147844598,-119.50805805,0.00010959,2]
[397090748,1765147844610,-31.49194195,0.00010959,2]
[397090750,1765147844619,-151.0,0.00010959,2]
[397090752,1765147844629,-113.54805805,0.00010959,2]
[397090754,1765147844641,-146.95522595,0.00010959,2]
[397090756,1765147844650,-424.747295,0.00010959,2]
[397090758,1765147844660,-424.747295,0.00010959,2]
[397090760,1765147844669,-415.55018405,0.00010959,2]
[397090935,1765147846539,-9.19711095,0.00010959,2]
[397090937,1765147846549,-424.747295,0.00010959,2]
[397090939,1765147846558,-424.747295,0.00010959,2]
[397090941,1765147846566,-424.747295,0.00010959,2]
[397090943,1765147846575,-424.747295,0.00010959,2]
[397090945,1765147846584,-424.747291,0.00010959,2]
[397090947,1765147846593,-194.73179,0.00010959,2]
[397090949,1765147846602,-2571.849863,0.00010959,2]
[397090951,1765147846611,-2571.849863,0.00010959,2]
[397090953,1765147846619,-2571.849863,0.00010959,2]
[397090955,1765147846628,-2571.849864,0.00010959,2]
[397090957,1765147846637,-151.0,0.00010959,2]
[397090959,1765147846647,-151.0,0.00010959,2]
[397090961,1765147846655,-151.0,0.00010959,2]
[397090963,1765147846664,-500.0,0.00010996,2]
[397090965,1765147846673,-420.0,0.00010998,2]
[397090967,1765147846682,-500.0,0.00011061,2]
[397090969,1765147846692,-600.0,0.00011075,2]
[397090971,1765147846701,-500.0,0.00011133,2]
[397090973,1765147846710,-500.0,0.00011198,2]
[397090976,1765147846720,-500.0,0.0001127,2]
[397090979,1765147846729,-397.87845665,0.00011335,2]
[397090981,1765147846738,-5477.2345555,0.0001138,2]
[397090983,1765147846748,-500.0,0.00011407,2]
[397090986,1765147846759,-499.20751657,0.00011469,2]
[397090989,1765147846771,-500.0,0.00011507,2]
[397090991,1765147846780,-7669.3219482,0.00011539,2]
[397090993,1765147846790,-500.0,0.00011544,2]
[397090995,1765147846799,-501.47539731,0.00011681,2]
[397090997,1765147846808,-180.0,0.00011699,3]
[397090999,1765147846817,-500.0,0.00012055,2]
[397091001,1765147846826,-499.20751657,0.00012179,2]
[397091003,1765147846835,-720.0,0.00012183,2]
[397091005,1765147846844,-151.0,0.000126,2]
[397091007,1765147846853,-500.0,0.00012603,2]
[397091009,1765147846865,-295.3662114,0.0001269,2]
[397091011,1765147846874,-500.0,0.0001269,2]
[397091013,1765147846883,-500.0,0.0001269,2]
[397091015,1765147846893,-500.0,0.0001269,2]
[397091017,1765147846902,-500.0,0.0001269,2]
[397091019,1765147846911,-500.0,0.0001269,2]
[397091021,1765147846930,-500.0,0.0001269,2]
[397091023,1765147846939,-247.95637275,0.0001269,2]
[397091025,1765147846949,-456.67741585,0.0001269,2]
[397091027,1765147846959,-500.0,0.0001269,2]
[397091029,1765147846968,-500.0,0.0001269,2]
[397091031,1765147846977,-500.0,0.0001269,2]
[397091033,1765147846985,-500.0,0.0001269,2]
[397091035,1765147846996,-500.0,0.0001269,2]
[397091037,1765147847005,-500.0,0.0001269,2]
[397091039,1765147847015,-500.0,0.0001269,2]
[397091041,1765147847025,-500.0,0.0001269,2]
[397091043,1765147847034,-500.0,0.0001269,2]
[397091045,1765147847043,-537.39563005,0.0001269,2]
[397091047,1765147847052,-501.45693112,0.0001269,2]
[397091048,1765147847060,-183.0,0.00012795,3]
[397091050,1765147847070,-1222.1362235,0.0001284,2]
[397091052,1765147847079,-499.20751657,0.00012889,2]
[397091054,1765147847088,-10000.0,0.000129,2]
[397091056,1765147847097,-151.0,0.000129,2]
[397091058,1765147847106,-352.50621684,0.00012944,2]
[397091060,1765147847115,-1711.2570345,0.00013019,2]
[397091062,1765147847124,-250.0,0.00013098,3]
[397091064,1765147847133,-500.0,0.00013151,2]
[397091066,1765147847142,-272.6954512,0.00013166,2]
[397091068,1765147847152,-151.0,0.000132,2]
[397091070,1765147847161,-500.0,0.00013273,2]
[397091072,1765147847170,-500.0,0.00013273,2]
[397091074,1765147847179,-500.0,0.00013273,2]
[397091076,1765147847188,-500.0,0.00013273,2]
[397091078,1765147847197,-500.0,0.00013273,2]
[397091080,1765147847206,-500.0,0.00013273,2]
[397091082,1765147847216,-500.0,0.00013273,2]
[397091084,1765147847225,-500.0,0.00013273,2]
[397091086,1765147847234,-500.0,0.00013273,2]
[397091088,1765147847243,-500.0,0.00013273,2]
[397091090,1765147847253,-500.0,0.00013273,2]
[397091092,1765147847262,-500.0,0.00013273,2]
[397091094,1765147847273,-500.0,0.00013273,2]
[397091096,1765147847282,-500.0,0.00013273,2]
[397091098,1765147847292,-500.0,0.00013273,2]
[397091100,1765147847301,-542.53156329,0.00013273,2]
[397091102,1765147847310,-976.55681392,0.00013273,2]
[397091104,1765147847319,-396.25907803,0.00013273,2]
[397091106,1765147847329,-1736.10100253,0.00013273,2]
[397091108,1765147847338,-250.0,0.0001334,2]
[397091110,1765147847347,-381.8330561,0.0001335,2]
[397091112,1765147847357,-151.0,0.000134,2]
[397091114,1765147847366,-864.0,0.00013401,2]
[397091116,1765147847376,-151.0,0.000135,2]
[397091118,1765147847385,-8939.27075344,0.00013598,2]
[397091120,1765147847395,-499.20751657,0.00013599,2]
[397091122,1765147847404,-151.0,0.000136,2]
[397091124,1765147847413,-151.0,0.000136,2]
[397091126,1765147847422,-300.0,0.00013673,2]
[397091129,1765147847432,-38000.0,0.00013689,3]
[397091131,1765147847442,-38000.0,0.00013698,3]
[397091132,1765147847451,-179.87408814,0.00013699,2]
[397091135,1765147847462,-1000.0,0.00013699,2]
[397091137,1765147847472,-2021.498454,0.00013699,2]
[397091139,1765147847482,-12944.4337662,0.00013699,2]
[397091141,1765147847491,-3018.030002,0.00013699,2]
[397091143,1765147847500,-3018.030002,0.00013699,2]
[397091145,1765147847509,-3018.030002,0.00013699,2]
[397091147,1765147847519,-3018.030002,0.00013699,2]
[397091149,1765147847528,-3018.030002,0.00013699,2]
[397091151,1765147847537,-3018.030002,0.00013699,2]
[397091153,1765147847546,-3018.030002,0.00013699,2]
[397091155,1765147847556,-3018.030002,0.00013699,2]
[397091157,1765147847566,-3018.030002,0.00013699,2]
[397091159,1765147847575,-3018.030002,0.00013699,2]
[397091161,1765147847585,-3018.030002,0.00013699,2]
[397091163,1765147847593,-3018.030002,0.00013699,2]
[397091165,1765147847603,-3018.030002,0.00013699,2]
[397091167,1765147847612,-3018.030002,0.00013699,2]
[397091168,1765147847621,-3018.030002,0.00013699,2]
[397091170,1765147847630,-1252.10070129,0.00013699,2]
[397091199,1765147847889,-33.7379207,0.00013699,2]
[397092860,1765147864570,156.05,5.1e-05,2]
[397098422,1765147923612,156.06,5.1e-05,2]
[397100881,1765147983627,156.05,5.1e-05,2]
[397100883,1765147989992,330.81685576,0.000211,99]
[397100884,1765147990497,330.81685576,0.000211,99]
[397100885,1765147990866,330.81685576,0.000211,99]
[397100886,1765147991406,330.81685576,0.000211,99]
[397100887,1765147991809,330.81685576,0.000211,99]
[397100888,1765147992192,330.81685576,0.000211,99]
[397100889,1765147992598,330.81685576,0.000211,99]
[397100890,1765147992988,330.81685576,0.000211,99]
[397100891,1765147993385,330.81685576,0.000211,99]
[397100892,1765147993832,330.81685576,0.000211,99]
[397100893,1765147994683,330.81685576,0.000211,99]
[397100916,1765147995117,330.81685576,0.000211,99]
[397100917,1765147995604,330.81685576,0.000211,99]
[397100918,1765147996449,330.81685576,0.000211,99]
[397100968,1765148043933,156.06,5.1e-05,2]
[397100971,1765148103931,156.05,5.1e-05,2]
[397100976,1765148163749,156.06,5.1e-05,2]
[397100994,1765148223992,156.05,5.1e-05,2]
[397101010,1765148284174,156.06,5.1e-05,2]
[397101062,1765148343948,156.05,5.1e-05,2]
[397101074,1765148403989,156.06,5.1e-05,2]
[397101111,1765148464397,156.05,5.1e-05,2]
[397101132,1765148523825,156.06,5.1e-05,2]
[397101219,1765148583819,156.05,5.1e-05,2]
[397101323,1765148643623,156.06,5.1e-05,2]
[397101386,1765148705196,156.05,5.1e-05,2]
[397101451,1765148763781,156.06,5.1e-05,2]
[397101516,1765148824019,156.05,5.1e-05,2]
[397101540,1765148840126,-232.0,9.999e-05,2]
[397101541,1765148840147,-384.38667365,9.999e-05,2]
[397101553,1765148844125,-618.61332635,9.999e-05,2]
[397101554,1765148844147,-315.0,9.999e-05,2]
[397101555,1765148844169,-300.0,9.999e-05,2]
[397101556,1765148844189,-209.08339866,9.999e-05,2]
[397101557,1765148844209,-440.77827499,0.0001,2]
[397101681,1765148884990,156.06,5.1e-05,2]
[397101697,1765148944103,156.05,5.1e-05,2]
[397101824,1765149004507,156.06,5.1e-05,2]
[397101865,1765149031742,-1002.31568725,0.0001,2]
[397102068,1765149038158,-322.24925186,0.0001,2]
[397102069,1765149038170,-3393.27706792,0.0001,2]
[397102070,1765149038184,-923.43172791,0.0001,2]
[397102071,1765149038196,-720.66052148,0.0001,2]
[397102530,1765149043211,-3197.28746859,0.0001,2]
[397102532,1765149043220,-232.0,0.0001,2]
[397102534,1765149043230,-210.17454485,0.000101,2]
[397102535,1765149043239,-300.0,0.00010199,2]
[397102537,1765149043248,-300.0,0.00010199,2]
[397102539,1765149043257,-300.0,0.00010199,2]
[397102541,1765149043267,-300.0,0.00010199,2]
[397102543,1765149043276,-300.0,0.00010199,2]
[397102545,1765149043286,-300.0,0.00010199,2]
[397102547,1765149043295,-300.0,0.00010199,2]
[397102549,1765149043304,-300.0,0.00010199,2]
[397102551,1765149043313,-300.0,0.00010199,2]
[397102552,1765149043322,-300.0,0.00010199,2]
[397102554,1765149043331,-300.0,0.00010199,2]
[397102556,1765149043340,-300.0,0.00010199,2]
[397102558,1765149043350,-300.0,0.00010199,2]
[397102560,1765149043359,-300.0,0.00010199,2]
[397102562,1765149043368,-300.0,0.00010199,2]
[397102564,1765149043378,-500.0,0.00010758,2]
[397102566,1765149043389,-500.0,0.00010758,2]
[397102568,1765149043399,-355.71277878,0.00010758,2]
[397102570,1765149043412,-33148.17848327,0.00010759,2]
[397102791,1765149045883,-24174.1577014,0.00010759,2]
[397102793,1765149045892,-399.31076779,0.00010797,2]
[397102795,1765149045903,-2214.1262154,0.00010844,2]
[397102797,1765149045913,-173.459,0.00010852,2]
[397102799,1765149045922,-151.0,0.00010852,2]
[397102801,1765149045931,-431.8605213,0.00010859,2]
[397102803,1765149045940,-500.0,0.00010959,2]
[397102805,1765149045949,-500.0,0.00010959,2]
[397102807,1765149045959,-500.0,0.00010959,2]
[397102809,1765149045972,-500.0,0.00010959,2]
[397102811,1765149045982,-500.0,0.00010959,2]
[397102813,1765149045991,-500.0,0.00010959,2]
[397102815,1765149046000,-500.0,0.00010959,2]
[397102817,1765149046010,-500.0,0.00010959,2]
[397102819,1765149046020,-500.0,0.00010959,2]
[397102821,1765149046030,-157.50141411,0.00010959,2]
[397102823,1765149046042,-342.49858589,0.00010959,2]
[397102825,1765149046052,-500.0,0.00010959,2]
[397102827,1765149046062,-500.0,0.00010959,2]
[397102829,1765149046072,-500.0,0.00010959,2]
[397102831,1765149046081,-500.0,0.00010959,2]
[397102833,1765149046091,-500.0,0.00010959,2]
[397102835,1765149046100,-500.0,0.00010959,2]
[397102837,1765149046110,-500.0,0.00010959,2]
[397102840,1765149046120,-500.0,0.00010959,2]
[397102842,1765149046130,-525.92680072,0.00010959,2]
[397102844,1765149046139,-500.0,0.00010959,2]
[397102846,1765149046148,-500.0,0.00010959,2]
[397102848,1765149046158,-550.0,0.00010959,2]
[397102850,1765149046168,-500.0,0.00010959,2]
[397102852,1765149046177,-612.76677344,0.00010959,2]
[397102854,1765149046187,-600.0,0.00011075,2]
[397102857,1765149046196,-500.0,0.00011507,2]
[397102860,1765149046206,-219.0,0.00011726,3]
[397102863,1765149046216,-500.0,0.00012055,2]
[397102865,1765149046225,-248.00596292,0.000121,2]
[397102867,1765149046234,-720.0,0.00012183,2]
[397102869,1765149046244,-151.0,0.000124,2]
[397102871,1765149046254,-151.0,0.000126,2]
[397102873,1765149046263,-384.17,0.00012603,2]
[397102875,1765149046273,-151.0,0.000129,2]
[397102877,1765149046282,-151.0,0.000132,2]
[397102879,1765149046292,-151.0,0.000132,2]
[397102881,1765149046301,-500.0,0.00013273,2]
[397102883,1765149046310,-500.0,0.00013273,2]
[397102885,1765149046319,-215.2111039,0.00013273,2]
[397102887,1765149046328,-500.0,0.00013273,2]
[397102889,1765149046338,-500.0,0.00013273,2]
[397102891,1765149046347,-500.0,0.00013273,2]
[397102893,1765149046356,-500.0,0.00013273,2]
[397102895,1765149046365,-500.0,0.00013273,2]
[397102897,1765149046374,-500.0,0.00013273,2]
[397102899,1765149046384,-500.0,0.00013273,2]
[397102901,1765149046393,-500.0,0.00013273,2]
[397102903,1765149046402,-500.0,0.00013273,2]
[397102905,1765149046411,-500.0,0.00013273,2]
[397102907,1765149046422,-500.0,0.00013273,2]
[397102909,1765149046436,-500.0,0.00013273,2]
[397102911,1765149046445,-500.0,0.00013273,2]
[397102913,1765149046454,-994.11254175,0.00013305,3]
[397104607,1765149063944,156.05,5.1e-05,2]
[397110286,1765149124847,156.06,5.1e-05,2]
[397114756,1765149184030,156.05,5.1e-05,2]
[397114793,1765149253845,156.06,5.1e-05,2]
[397114869,1765149362118,156.05,5.1e-05,2]
[397114870,1765149425219,156.06,5.1e-05,2]
[397114876,1765149482748,156.05,5.1e-05,2]
[397114884,1765149543932,156.06,5.1e-05,2]
[397114937,1765149602031,156.05,5.1e-05,2]
[397115025,1765149664997,156.06,5.1e-05,2]
[397115096,1765149722118,156.05,5.1e-05,2]
[397115101,1765149735408,617.07895887,0.00015,30]
[397115126,1765149783937,156.06,5.1e-05,2]
[397115156,1765149829681,161.3558199,4.678e-05,2]
[397115163,1765149842132,156.05,5.1e-05,2]
[397115168,1765149904274,156.06,5.1e-05,2]
[397115169,1765149948095,-150.0,6.995e-05,2]
[397115170,1765149948346,-81.48065534,7.321e-05,2]
[397115171,1765149962441,156.05,5.1e-05,2]
[397115173,1765150023982,156.06,5.1e-05,2]
[397115174,1765150040125,-206.10366971,8.298e-05,2]
[397115175,1765150040146,-229.0,9.6e-05,2]
[397115176,1765150040167,-119.76883029,9.969e-05,2]
[397115177,1765150082175,156.05,5.1e-05,2]
[397115180,1765150144286,156.06,5.1e-05,2]
[397115181,1765150145104,-150.0,6.99e-05,2]
[397115182,1765150145132,-211.51597495,7.157e-05,2]
[397115183,1765150145155,-52.06558505,7.323e-05,2]
[397115184,1765150164141,-97.93441495,7.323e-05,2]
[397115185,1765150164161,-249.58885044,9.157e-05,2]
[397115186,1765150164182,-386.22603509,9.229e-05,2]
[397115190,1765150202205,156.05,5.1e-05,2]
[397115289,1765150238083,-226.0,9.229e-05,2]
[397115291,1765150238093,-43.52342941,9.229e-05,2]
[397115293,1765150238103,-156.05,9.6e-05,2]
[397115295,1765150238113,-399.31076779,9.962e-05,2]
[397115297,1765150238123,-300.0,9.999e-05,2]
[397115299,1765150238133,-500.0,9.999e-05,2]
[397115301,1765150238142,-446.22469538,9.999e-05,2]
[397115303,1765150238151,-4769.94134063,0.0001,2]
[397115305,1765150238163,-5230.05865937,0.0001,2]
[397115308,1765150238173,-271.42382016,0.00010556,2]
[397115310,1765150238182,-500.0,0.00010556,2]
[397115312,1765150238191,-448.99894515,0.00010556,2]
[397115313,1765150238201,-500.0,0.00010556,2]
[397115316,1765150238211,-500.0,0.00010556,2]
[397115317,1765150238220,-500.0,0.00010556,2]
[397115319,1765150238229,-500.0,0.00010556,2]
[397115321,1765150238239,-501.06342254,0.00010556,2]
[397115323,1765150238248,-500.0,0.00010556,2]
[397115325,1765150238258,-500.0,0.00010556,2]
[397115327,1765150238267,-500.0,0.00010556,2]
[397115329,1765150238277,-500.0,0.00010556,2]
[397115332,1765150238286,-500.0,0.00010556,2]
[397115334,1765150238295,-500.0,0.00010556,2]
[397115336,1765150238304,-500.0,0.00010556,2]
[397115338,1765150238314,-500.0,0.00010556,2]
[397115339,1765150238323,-582.6,0.00010556,2]
[397115340,1765150238332,-1461.06,0.00010556,2]
[397115341,1765150238342,-24599.98321898,0.00010557,2]
[397115342,1765150238364,-4789.58329938,0.00010557,2]
[397115506,1765150240125,-467.93,0.00010556,2]
[397116098,1765150245888,-118.28,0.00010556,2]
[397116100,1765150245898,-500.0,0.00010556,2]
[397116102,1765150245907,-500.0,0.00010556,2]
[397116104,1765150245916,-280373.09641091,0.00010557,2]
[397116106,1765150245926,-4676.73692172,0.00010639,2]
[397116108,1765150245935,-500.0,0.00010639,2]
[397116110,1765150245945,-4738.27,0.00010639,2]
[397116112,1765150245954,-1448.04,0.00010639,2]
[397116114,1765150245964,-857.31,0.00010639,2]
[397116116,1765150245973,-500.0,0.00010639,2]
[397116117,1765150245983,-1637.69,0.00010639,2]
[397116120,1765150245992,-532.00885921,0.00010639,2]
[397116122,1765150246002,-7759.82,0.00010639,2]
[397116124,1765150246014,-5974.86,0.00010639,2]
[397116126,1765150246025,-961.2,0.00010639,2]
[397116128,1765150246034,-10995.86,0.00010639,2]
[397116130,1765150246043,-500.0,0.00010639,2]
[397116132,1765150246052,-683.06,0.00010639,2]
[397116134,1765150246061,-500.0,0.00010639,2]
[397116136,1765150246071,-2274.37,0.0001064,2]
[397116138,1765150246079,-1861.54,0.0001064,2]
[397116140,1765150246088,-2239.53,0.0001064,2]
[397116141,1765150246098,-600.97,0.0001064,2]
[397116143,1765150246107,-2372.02,0.0001064,2]
[397116145,1765150246116,-4514.64,0.0001064,2]
[397116147,1765150246126,-1896.03,0.0001064,2]
[397116150,1765150246136,-791.2,0.0001064,2]
[397116152,1765150246145,-950.05,0.0001064,2]
[397116153,1765150246154,-8672.04,0.0001064,2]
[397116155,1765150246163,-500.89386951,0.0001064,2]
[397116157,1765150246173,-624.39,0.0001064,2]
[397116159,1765150246182,-505.90908398,0.0001064,2]
[397116161,1765150246191,-1314.75,0.0001064,2]
[397116163,1765150246202,-458.63924651,0.0001064,2]